Workbook

Sheet Лист1
F1: Утверждаю
E2: Директор ______________Шарифьянов В. Ф.
F3: 16.09.022
D4: Меню
A5: для обучающихся 1-4 классов
A6: 1 | B6: 2 | D6: 3 | F6: 4 | G6: 5 | H6: 6 | I6: 7
A7: Завтрак
A8: 181.39 | B8: Каша рисовая молочная вязкая с маслом | D8: 150/10 | E8: 15.74 | F8: 4.6 | G8: 9.96 | H8: 32.25 | I8: 237.47
A9: 289 | B9: какао с молоком | D9: 200 | E9: 11.93 | F9: 3.87 | G9: 3.8 | H9: 15.09 | I9: 111.46
A10: 420.05 | B10: Хлеб пшеничный обогащенный витаминами для детского питания | D10: 50 | E10: 3 | F10: 3.6 | G10: 0.45 | H10: 24.75 | I10: 117
A11: 27.01 | B11: Сыр (порциями) | D11: 10 | E11: 6.7 | F11: 2.63 | G11: 2.66 | I11: 35
A12: 476.01 | B12: Кисломолочный продукт для детского питания | D12: 100 | E12: 10 | F12: 3.2 | G12: 3.2 | H12: 4.5 | I12: 62
B13: Печенье | D13: 50 | E13: 12.39 | F13: 13 | G13: 7.0 | H13: 8.0 | I13: 82
A14: Итого за Завтрак | E14: =SUM(E8:E13) -> 59.76 | F14: =SUM(F8:F13) -> 30.60 | G14: =SUM(G8:G13) -> 27.07 | H14: =SUM(H8:H13) -> 84.59 | I14: =SUM(I8:I13) -> 644.93 | J14: 59.76
A17: Повар:___________________Абзалова Н. К.
F20: Утверждаю
E21: Директор ______________Шарифьянов В. Ф.
F22: 2022-09-16
D23: Меню
A24: для обучающихся 5-9 классов
A25: 1 | B25: 2 | D25: 3 | F25: 4 | G25: 5 | H25: 6 | I25: 7
A26: Завтрак
A27: 181.39 | B27: Каша рисовая молочная вязкая с маслом | D27: 180/10 | E27: 18.89 | F27: 4.6 | G27: 9.96 | H27: 32.25 | I27: 237.47
A28: 289 | B28: какао с молоком | D28: 200 | E28: 11.93 | F28: 3.87 | G28: 3.8 | H28: 15.09 | I28: 111.46
A29: 420.05 | B29: Хлеб пшеничный обогащенный витаминами для детского питания | D29: 60 | E29: 3.6 | F29: 3.6 | G29: 0.45 | H29: 24.75 | I29: 117
A30: 27.01 | B30: Сыр (порциями) | D30: 12 | E30: 8.16 | F30: 2.63 | G30: 2.66 | I30: 35
A31: 476.01 | B31: Кисломолочный продукт для детского питания | D31: 100 | E31: 10 | F31: 3.2 | G31: 3.2 | H31: 4.5 | I31: 62
B32: Печенье | D32: 58 | E32: 14.63 | F32: 13 | G32: 7.0 | H32: 8.0 | I32: 82
A33: Итого за Завтрак | E33: =SUM(E27:E32) -> 67.21 | F33: =SUM(F27:F32) -> 30.60 | G33: =SUM(G27:G32) -> 27.07 | H33: =SUM(H27:H32) -> 84.59 | I33: =SUM(I27:I32) -> 644.93 | J33: 67.21
A36: Повар:___________________Абзалова Н. К.

Sheet Лист2
F1: Утверждаю
E2: Директор ______________Шарифьянов В. Ф.
F3: 2022-09-16
D4: Меню
A5: для обучающихся 1-4 классов
A6: 1 | B6: 2 | D6: 3 | F6: 4 | G6: 5 | H6: 6 | I6: 7
A7: Завтрак
A8: 181.39 | B8: Каша рисовая молочная вязкая с маслом | D8: 150/10 | E8: 15.74 | F8: 4.6 | G8: 9.96 | H8: 32.25 | I8: 237.47
A9: 289 | B9: какао с молоком | D9: 200 | E9: 11.93 | F9: 3.87 | G9: 3.8 | H9: 15.09 | I9: 111.46
A10: 420.05 | B10: Хлеб пшеничный обогащенный витаминами для детского питания | D10: 50 | E10: 3 | F10: 3.6 | G10: 0.45 | H10: 24.75 | I10: 117
A11: 27.01 | B11: Сыр (порциями) | D11: 10 | E11: 6.7 | F11: 2.63 | G11: 2.66 | I11: 35
A12: 476.01 | B12: Кисломолочный продукт для детского питания | D12: 100 | E12: 10 | F12: 3.2 | G12: 3.2 | H12: 4.5 | I12: 62
B13: Печенье | D13: 50 | E13: 12.39 | F13: 13 | G13: 7.0 | H13: 8.0 | I13: 82
A14: Итого за Завтрак | F14: =SUM(F8:F13) -> 30.60 | G14: =SUM(G8:G13) -> 27.07 | H14: =SUM(H8:H13) -> 84.59 | I14: =SUM(I8:I13) -> 644.93
A16: 2.10 | B16: Салат из белокочанной капусты с морковью | D16: 80 | E16: 13.09 | F16: 1.38 | G16: 3.08 | H16: 7.01 | I16: 62.12
A17: 54.47 | B17: Рассольник ленинградский | D17: 250 | E17: 10.17 | F17: 2.09 | G17: 5.01 | H17: 13.9 | I17: 109.77
A18: 502.53 | B18: Биточки из мяса птицы с томатным соусом (филе) | D18: 80/30 | E18: 27.02 | F18: 9.95 | G18: 9.48 | H18: 8.57 | I18: 159.02
A19: 138.06 | B19: Картофельное пюре | D19: 180 | E19: 6.69 | F19: 9.25 | G19: 9.84 | H19: 8.0 | I19: 157.63
A20: 283 | B20: Чай с сахаром | D20: 200 | E20: 1.93 | H20: 9.98 | I20: 39.9
A21: 420.05 | B21: Хлеб пшеничный обогащенный витаминами для детского питания | D21: 50 | E21: 3 | F21: 3.6 | G21: 0.45 | H21: 24.75 | I21: 117
A22: Итого за Обед | F22: =SUM(F17:F21) -> 24.89 | G22: =SUM(G17:G21) -> 24.78 | H22: =SUM(H17:H21) -> 65.16 | I22: =SUM(I17:I21) -> 583.32
A23: Итого за день | E23: =SUM(E8:E22) -> 121.66 | F23: =E13+F22 -> 37.28 | G23: =F13+G22 -> 37.48 | H23: =G13+H22 -> 72.16 | I23: =H13+I22 -> 591.32 | J23: 121.66
A32: Повар:___________________Абзалова Н. К.
F35: Утверждаю
E36: Директор ______________Шарифьянов В. Ф.
F37: 2022-09-16
D38: Меню
A39: для обучающихся 5-9 классов
A40: 1 | B40: 2 | D40: 3 | F40: 4 | G40: 5 | H40: 6 | I40: 7
A41: Завтрак
A42: 181.39 | B42: Каша рисовая молочная вязкая с маслом | D42: 180/10 | E42: 18.89 | F42: 4.6 | G42: 9.96 | H42: 32.25 | I42: 237.47
A43: 289 | B43: какао с молоком | D43: 200 | E43: 11.93 | F43: 3.87 | G43: 3.8 | H43: 15.09 | I43: 111.46
A44: 420.05 | B44: Хлеб пшеничный обогащенный витаминами для детского питания | D44: 60 | E44: 3.6 | F44: 3.6 | G44: 0.45 | H44: 24.75 | I44: 117
A45: 27.01 | B45: Сыр (порциями) | D45: 12 | E45: 8.16 | F45: 2.63 | G45: 2.66 | I45: 35
A46: 476.01 | B46: Кисломолочный продукт для детского питания | D46: 100 | E46: 10 | F46: 3.2 | G46: 3.2 | H46: 4.5 | I46: 62
B47: Печенье | D47: 58 | E47: 14.63 | F47: 13 | G47: 7.0 | H47: 8.0 | I47: 82
A48: Итого за Завтрак | F48: =SUM(F42:F47) -> 30.60 | G48: =SUM(G42:G47) -> 27.07 | H48: =SUM(H42:H47) -> 84.59 | I48: =SUM(I42:I47) -> 644.93
A49: 2.10 | B49: Салат из белокочанной капусты с морковью | D49: 100 | E49: 16.36 | F49: 1.38 | G49: 3.08 | H49: 7.01 | I49: 62.12
A50: 54.47 | B50: Рассольник ленинградский | D50: 250 | E50: 10.17 | F50: 2.09 | G50: 5.01 | H50: 13.9 | I50: 109.77
A51: 502.53 | B51: Биточки из мяса птицы с томатным соусом (филе) | D51: 95 | E51: 32.8 | F51: 9.95 | G51: 9.48 | H51: 8.57 | I51: 159.02
A52: 138.06 | B52: Картофельное пюре | D52: 250 | E52: 9.29 | F52: 9.25 | G52: 9.84 | H52: 8.0 | I52: 157.63
A53: 283 | B53: Чай с сахаром | D53: 200 | E53: 1.93 | H53: 9.98 | I53: 39.9
A54: 420.05 | B54: Хлеб пшеничный обогащенный витаминами для детского питания | D54: 60 | E54: 3.6 | F54: 3.6 | G54: 0.45 | H54: 24.75 | I54: 117
A55: Итого за Обед | F55: =SUM(F50:F54) -> 24.89 | G55: =SUM(G50:G54) -> 24.78 | H55: =SUM(H50:H54) -> 65.16 | I55: =SUM(I50:I54) -> 583.32 | J55: 141.36
A56: Итого за день | E56: =SUM(E42:E55) -> 141.36 | F56: =E47+F55 -> 39.52 | G56: =F47+G55 -> 37.48 | H56: =G47+H55 -> 72.16 | I56: =H47+I55 -> 591.32

Sheet Лист3
